Cogmind - Beta 12 @@@ ROGUE MODE // 2023.12.06 @ 21:15:26 Player: Dosh Result: Destroyed by G-47 Trooper with Particle Gun Performance ------------- Evolutions (0) 0 Regions Visited (4) 800 Robots Destroyed (33) 165 Value Destroyed (826) 826 Prototype IDs (25) 500 Alien Tech Used (0) 0 Bonus (300) 300 TOTAL SCORE: 2591 Bonus ------- Aligned with FarCom 300 Cogmind --------- Core Integrity 0/250 Matter 300/300 Energy 250/250 System Corruption 1% Temperature Hot (214) Movement Core (550) Ox10 Location -9/Mines Parts ------- > --- POWER (1) -------- Ion Engine > --- PROPULSION (2) --- (None) > --- UTILITY (2) ------ Large Storage Unit Salvage Targeting Computer > --- WEAPON (2) ------- Plasma Flamer Heavy Hammer > --- INVENTORY (15) --- Light Nuclear Core Improved Treads Improved Treads Improved Heat Sink Faulty Experimental Sensor Array Particle Gun AWS/Autocannon Grenade Launcher Rocket Launcher Peak State ------------ > --- POWER ------------ Ion Engine > --- PROPULSION ------- Improved Treads Improved Treads > --- UTILITY ---------- Large Storage Unit Salvage Targeting Computer > --- WEAPON ----------- Particle Gun Plasma Flamer > --- INVENTORY -------- Light Nuclear Core Improved Treads Improved Treads Wheel Compact Wheel Improved Heat Sink Small Storage Unit Experimental Sensor Array AWS/Autocannon Grenade Launcher Grenade Launcher Rocket Launcher Heavy Hammer [Rating: 20] Favorites ----------- Power Ion Engine Engine Ion Engine Propulsion Improved Treads Treads Improved Treads Utility Salvage Targeting Computer Storage Large Storage Unit Processor Salvage Targeting Computer Weapon Light Assault Rifle Energy Gun Particle Gun Ballistic Gun Light Assault Rifle Special Weapon Plasma Flamer Impact Weapon Heavy Hammer Build | -11 -10 -10 -10 -9 ------- Run | Jun Mat Min Exi Min Slots Evolved . | . . . . . Power . | . . . . . Propulsion . | . . . . . Utility . | . . . . . Weapon . | . . . . . Parts Attached 19 | 7 8 . . 4 Power 2 | 1 1 . . . Engine 2 | 1 1 . . . Core . | . . . . . Reactor . | . . . . . Propulsion 5 | 2 3 . . . Treads 5 | 2 3 . . . Leg . | . . . . . Wheel . | . . . . . Hover . | . . . . . Flight . | . . . . . Utility 3 | 1 2 . . . Device . | . . . . . Storage 2 | 1 1 . . . Processor 1 | . 1 . . . Hackware . | . . . . . Protection . | . . . . . Artifact . | . . . . . Weapon 9 | 3 2 . . 4 Energy Gun 2 | 1 1 . . . Energy Cannon . | . . . . . Ballistic Gun 4 | 2 1 . . 1 Ballistic Cannon . | . . . . . Launcher . | . . . . . Special Weapon 1 | . . . . 1 Impact Weapon 2 | . . . . 2 Slashing Weapon . | . . . . . Piercing Weapon . | . . . . . Special Melee Weapon . | . . . . . Unidentified Prototypes . | . . . . . Parts Lost 5 | . 3 . . 2 Power 1 | . 1 . . . Propulsion 2 | . . . . 2 Utility . | . . . . . Weapon 2 | . 2 . . . Highest Loss Streak 2 | . 1 . . 2 To Critical Strikes . | . . . . . Average Slot Usage (%) 97 | . 94 100 100 99 Engine 13 | . 13 14 14 14 Treads 27 | . 27 28 28 27 Storage 14 | . 14 14 14 14 Processor 11 | . 9 14 14 14 Energy Gun 9 | . 3 14 14 13 Ballistic Gun 15 | . 24 14 14 4 Special Weapon 2 | . . . . 8 Naked Turns . | . . . . . Heaviest Build 31 | 14 29 29 29 31 Greatest Support 46 | 40 46 46 46 46 Greatest Overweight (x) . | . . . . . Average Overweight (x) . | . . . . . Largest Inventory Capacity 15 | 8 15 15 15 15 Average Capacity 13 | 6 11 15 15 15 Most Carried 15 | 4 15 15 15 15 Average Carried 10 | 1 8 14 14 12 Final Capacity 15 | 8 15 15 15 15 Final Carried 15 | 4 14 15 15 11 Class Distribution -------------------- 100% | Mutant Dominant Class ---------------- Mutant | -10/Materials Mutant | -10/Mines Mutant | -10/Exiles Mutant | -9/Mines Resources | -11 -10 -10 -10 -9 ----------- Run | Jun Mat Min Exi Min Matter Collected 750 | 227 416 4 . 103 Remotely . | . . . . . Salvage Created 1051 | . 884 . . 167 Parts 72 | . 65 . . 7 Haulers Intercepted . | . . . . . Recyclers Shooed 1 | . 1 . . . Parts Field Recycled . | . . . . . Retrieved Matter . | . . . . . Parts Self-Destructed . | . . . . . Prevented . | . . . . . Kills | -11 -10 -10 -10 -9 ------- Run | Jun Mat Min Exi Min Combat Hostiles Destroyed 25 | . 20 . . 5 Guns 21 | . 20 . . 1 Cannons 2 | . . . . 2 Classes Destroyed 8 | . 7 . . 1 Worker 1 | . 1 . . . Builder 1 | . 1 . . . Tunneler 2 | . 1 . . 1 Operator 1 | . 1 . . . Watcher 3 | . 3 . . . Swarmer 6 | . 6 . . . Grunt 18 | . 14 . . 4 Duelist 1 | . . . . 1 Best Kill Streak 3 | . 3 . . 3 Combat Bots Only 3 | . 3 . . 3 Max Kills in Single Turn 2 | . 2 . . 1 Gunslinging . | . . . . . Exploded . | . . . . . Melee . | . . . . . Uniques/NPCs Destroyed . | . . . . . Combat | -11 -10 -10 -10 -9 -------- Run | Jun Mat Min Exi Min Damage Taken 1209 | . 789 . . 420 Core 254 | . 155 . . 99 Absorbed by Shields . | . . . . . Regen/Repaired (Parts) 129 | . 129 . . . Core Remaining (%) 100 | 100 . . . . Volleys Fired 105 | . 85 . . 20 Largest 2 | . 2 . . 2 Hottest 165 | . 85 . . 165 Shots Fired 197 | . 167 . . 30 Gun 185 | . 167 . . 18 Cannon . | . . . . . Launcher . | . . . . . Special 12 | . . . . 12 Kinetic 145 | . 144 . . 1 Thermal 31 | . 2 . . 29 Explosive . | . . . . . Electromagnetic 21 | . 21 . . . Robot Hit Streak 17 | . 13 . . 17 Robot Miss Streak 6 | . 6 . . 2 Penetration Max . | . . . . . Secondary Targets 4 | . 4 . . . Max Gunslinging Chain 1 | . 1 . . . Shots Hit Robots 116 | . 90 . . 26 Core Hits 49 | . 42 . . 7 Critical Kills . | . . . . . Critical Parts Destroyed 3 | . 2 . . 1 Critical Strikes 6 | . 3 . . 3 Burn 2 | . . . . 2 Destroy 2 | . 2 . . . Corrupt 1 | . 1 . . . Smash 1 | . . . . 1 Melee Attacks 7 | . . . . 7 Impact 7 | . . . . 7 Slashing . | . . . . . Piercing . | . . . . . Sneak Attacks 1 | . . . . 1 Combat Hostiles . | . . . . . Follow-up Attacks . | . . . . . Damage Inflicted 1573 | . 1050 3 . 520 Guns 1184 | . 1040 . . 144 Cannons . | . . . . . Explosions . | . . . . . Melee 220 | . . . . 220 Ramming 16 | . 10 3 . 3 Kinetic 790 | . 790 . . . Thermal 329 | . 32 . . 297 Explosive . | . . . . . Electromagnetic 218 | . 218 . . . Impact 220 | . . . . 220 Slashing . | . . . . . Piercing . | . . . . . Highest Corruption 1 | . 1 1 1 1 Average Corruption 1 | . 1 1 1 1 Corruption Purged . | . . . . . Corruption Blocked . | . . . . . Effects 10 | . 3 2 1 4 Message Errors 3 | . 1 . . 2 Matter Fused 3 | . 1 1 . 1 Heat Flow Errors 2 | . 1 . 1 . Energy Discharges 1 | . . 1 . . Data Loss (minor) 1 | . . . . 1 Overload Shots . | . . . . . Overflow Damage 128 | . . . . 128 Projectiles . | . . . . . Explosions . | . . . . . Melee 128 | . . . . 128 Knockbacks . | . . . . . Impact . | . . . . . Kinetic . | . . . . . Secondary . | . . . . . Self-Inflicted Damage . | . . . . . Shots . | . . . . . Rammed 5 | . 2 1 . 2 Targets Rammed 6 | . 3 1 . 2 Kicked . | . . . . . Crushed 1 | . 1 . . . Highest Temperature 708 | . 178 . 229 708 Average Temperature 143 | . 29 . 116 236 Received Heat Transfer 507 | . 336 . . 171 Effects 16 | . . . . 16 Shutdowns 3 | . . . . 3 Energy Bleed 3 | . . . . 3 Interference 4 | . . . . 4 Matter Decay 1 | . . . . 1 Damage (minor) 2 | . . . . 2 Damage (major) 3 | . . . . 3 Siege Activations . | . . . . . Robots Corrupted . | . . . . . Combat Hostiles . | . . . . . Parts Fried 1 | . . . . 1 Impact Corruptions 3 | . . . . 3 Robots Melted 2 | . . . . 2 Combat Hostiles 2 | . . . . 2 Parts Melted 3 | . . . . 3 Heat Transferred 1724 | . 74 . . 1650 Parts Sabotaged . | . . . . . Parts Stolen . | . . . . . Parts Stripped . | . . . . . Power Chain Reactions . | . . . . . Missiles Intercepted . | . . . . . Alert | -11 -10 -10 -10 -9 ------- Run | Jun Mat Min Exi Min Peak Influence 321 | . 321 56 . 85 Initial 56 | . . 56 . . Average 109 | . 194 55 . 30 Maximum Alert Level 1 | . 1 . . . Low Security (%) 79 | 100 56 100 . 100 Level 1 20 | . 43 . . . Level 2 . | . . . . . Level 3 . | . . . . . Level 4 . | . . . . . Level 5 . | . . . . . High Security . | . . . . . Max Security . | . . . . . Squads Dispatched 5 | . 5 . . . Investigation 4 | . 4 . . . Extermination . | . . . . . Reinforcement 1 | . 1 . . . Assault . | . . . . . Garrison . | . . . . . Intercept . | . . . . . Searches Triggered . | . . . . . Construction Impeded . | . . . . . Haulers Reinforced . | . . . . . Active Scanning Responses . | . . . . . Cargo Convoy Interrupts . | . . . . . Stealth | -11 -10 -10 -10 -9 --------- Run | Jun Mat Min Exi Min Distress Signals 3 | . 3 . . . Communications Jammed . | . . . . . Distress Signals . | . . . . . Times Spotted 38 | . 28 . . 10 Peak Tracking Total 3 | . 3 . . 3 Tactical Retreats 3 | . . . . 3 Traps | -11 -10 -10 -10 -9 ------- Run | Jun Mat Min Exi Min Traps Triggered 3 | . 3 . . . Indirectly . | . . . . . Trap Hack Attempts . | . . . . . Triggered . | . . . . . Disarmed . | . . . . . Reprogrammed . | . . . . . Reused . | . . . . . Traps Extracted . | . . . . . Installed . | . . . . . Triggered 1 | . 1 . . . Machines | -11 -10 -10 -10 -9 ---------- Run | Jun Mat Min Exi Min Machines Disabled 1 | . . . . 1 Max in Single Turn 1 | . . . . 1 Machines Repaired . | . . . . . Machines Sabotaged . | . . . . . Overloaded Fab Kills . | . . . . . Hacking | -11 -10 -10 -10 -9 --------- Run | Jun Mat Min Exi Min Machines Accessed 6 | . 4 1 1 . Terminals 3 | . 3 . . . Fabricators . | . . . . . Repair Stations 1 | . 1 . . . Recycling Units . | . . . . . Scanalyzers . | . . . . . Garrison Access . | . . . . . Total Hacks 10 | . 8 1 1 . Successful 8 | . 6 1 1 . Failed 2 | . 2 . . . Catastrophic 1 | . 1 . . . Database Lockouts . | . . . . . Manual 4 | . 3 . 1 . Terminals 6 | . 6 . . . Fabricators . | . . . . . Repair Stations 2 | . 2 . . . Recycling Units . | . . . . . Scanalyzers . | . . . . . Garrison Access . | . . . . . Terminal Hacks 5 | . 3 1 1 . Prototype ID Bank 1 | . 1 . . . Open Door 1 | . . 1 . . Branch Access Points 1 | . 1 . . . Alert Level 1 | . 1 . . . EX-Prototype ID Bank 1 | . . . 1 . Fabricator Hacks . | . . . . . Repair Station Hacks 2 | . 2 . . . Scan Component 1 | . 1 . . . Repair 1 | . 1 . . . Recycling Unit Hacks . | . . . . . Scanalyzer . | . . . . . Garrison Access Hacks . | . . . . . Unauthorized Hacks 1 | . 1 . . . Terminals 1 | . 1 . . . Operators 1 | . 1 . . . Fabricators . | . . . . . Repair Stations . | . . . . . Recycling Units . | . . . . . Scanalyzers . | . . . . . Garrison Access . | . . . . . Data Cores Recovered . | . . . . . Used . | . . . . . Hacking Detections 3 | . 3 . . . Full Trace Events 1 | . 1 . . . Feedback Events . | . . . . . Feedback Blocked . | . . . . . Robot Schematics Acquired . | . . . . . Robots Built . | . . . . . Authchips . | . . . . . Time . | . . . . . Total Robot Build Rating . | . . . . . Part Schematics Acquired . | . . . . . Parts Built . | . . . . . Authchips . | . . . . . Time . | . . . . . Total Part Build Rating . | . . . . . Parts Repaired 1 | . 1 . . . Time 26 | . 26 . . . Parts Recycled . | . . . . . Recycled Matter . | . . . . . Retrieved Matter . | . . . . . Retrieved Components . | . . . . . Parts Scanalyzed . | . . . . . Part Schematics Acquired . | . . . . . Parts Damaged . | . . . . . Bothacking | -11 -10 -10 -10 -9 ------------ Run | Jun Mat Min Exi Min Used RIF Installer . | . . . . . Robots Hacked . | . . . . . Non-combat . | . . . . . Combat . | . . . . . Robot Hacks Applied . | . . . . . Relay Couplers Released . | . . . . . Fabnet Peak Effective % . | . . . . . Robots Rewired . | . . . . . Allies Hacked . | . . . . . Hacks Repelled . | . . . . . Allies | -11 -10 -10 -10 -9 -------- Run | Jun Mat Min Exi Min Total Allies 1 | . . 1 . . Largest Group 1 | . . 1 1 . Highest-Rated Group 31 | . . 31 31 . Highest-Rated Ally 31 | . . 31 31 . Total Orders . | . . . . . Ally Attacks . | . . . . . Total Damage . | . . . . . Kills . | . . . . . Allies Corrupted . | . . . . . Allies Melted . | . . . . . Intel | -11 -10 -10 -10 -9 ------- Run | Jun Mat Min Exi Min Robot Analysis Total . | . . . . . Derelict Logs Recovered 2 | . . 1 . 1 Drone Launches . | . . . . . Drone Recoveries . | . . . . . Exploration | -11 -10 -10 -10 -9 ------------- Run | Jun Mat Min Exi Min Turns Passed 2934 | 85 1202 400 360 887 Spaces Moved 1474 | 47 552 246 224 405 Core 2 | 2 . . . . Treads 1472 | 45 552 246 224 405 Legs . | . . . . . Wheels . | . . . . . Hover . | . . . . . Flight . | . . . . . Fastest Speed 50 | 50 160 160 160 160 Average Speed 159 | 155 160 160 160 160 Slowest Speed 160 | 160 160 160 160 160 Overloaded Moves . | . . . . . Propulsion Burnouts . | . . . . . Robots Hopped . | . . . . . Cave-ins Triggered . | . . . . . Exploration Rate (%) 55 | 4 88 51 61 73 Regions Visited 4 Branch Regions 3 Pre-discovered Areas 1 | . . . . 1 Known Exits Taken 1 | . 1 . . . Unknown Exits Taken 3 | 1 . 1 1 . Scrap Searched 3 | . . 1 . 2 Spaces Dug . | . . . . . Terrain Destroyed . | . . . . . Melee . | . . . . . Projectile . | . . . . . AOE . | . . . . . Terrain Rammed . | . . . . . Walls Destroyed . | . . . . . Machines Disabled . | . . . . . Actions | -11 -10 -10 -10 -9 --------- Run | Jun Mat Min Exi Min Total 1843 | 56 712 252 227 596 Wait 213 | . 55 5 . 153 Move 1470 | 46 551 245 223 405 Hop . | . . . . . Pick Up 15 | 3 10 1 1 . Fast Attach 9 | 6 2 . . 1 Attach 3 | . 3 . . . Detach . | . . . . . Swap 7 | 1 3 . . 3 Drop 8 | . . . 3 5 Fire 105 | . 85 . . 20 Melee 7 | . . . . 7 Ram . | . . . . . Kick . | . . . . . Crush 6 | . 3 1 . 2 Escape Stasis . | . . . . . Rewire . | . . . . . Trap . | . . . . . Miscellaneous . | . . . . . Route ------- -11/Junkyard -10/Materials (discovered 3 exits: *Mat x2 / *Min) -10/Mines (discovered 3 exits: *Mat x2 / *Exi) -10/Exiles -9/Mines History --------- Turn | Location | Event 53 | -11/Junkyard | Discovered new exit (range 15) 86 | -11/Junkyard | Entered Materials 322 | -10/Materials | Build established: Mutant 409 | -10/Materials | Identified exit to Mines 702 | -10/Materials | Core integrity fell below 50% 744 | -10/Materials | Repaired Lgt. Treads 777 | -10/Materials | Discovered new exit (range 12) 1141 | -10/Materials | Discovered new exit (range 7) 1288 | -10/Materials | Entered Mines 1435 | -10/Mines | Found the Drone Emporium 1514 | -10/Mines | Discovered new exit (range 11) 1525 | -10/Mines | Received a Mining Laser from a helpful Derelict 1638 | -10/Mines | Found a damaged Exp. Sensor Array with a note attached 1641 | -10/Mines | Found Prototype Device 1650 | -10/Mines | Identified exit to Materials 1681 | -10/Mines | Deemed a non-threat by the Exiles lab entrance 1681 | -10/Mines | Discovered new exit (range 5) 1688 | -10/Mines | Entered Exiles 1688 | -10/Exiles | Accompanied by 1 ally 1727 | -10/Exiles | Met 8R-AWN 1756 | -10/Exiles | Met EX-HEX 1797 | -10/Exiles | Met EX-BIN 1820 | -10/Exiles | Aligned with FarCom system 1821 | -10/Exiles | Given EX-Vault access code 1858 | -10/Exiles | Opened EX-Vault 1876 | -10/Exiles | Found AWS/Autocannon 1909 | -10/Exiles | Warned to stay clear of 0b10 Research branches 1955 | -10/Exiles | Met EX-DEC 2030 | -10/Exiles | Discovered new exit (range 12) 2048 | -10/Exiles | Left Exiles lab with AWS/Autocannon 2048 | -10/Exiles | Entered Mines 2088 | -9/Mines | Met a Derelict bent on vengeance 2100 | -9/Mines | Learned location of Zion (-6) 2150 | -9/Mines | Excavation squad dispatched 2150 | -9/Mines | A large section of the Mines collapsed 2400 | -9/Mines | Excavation squad dispatched 2401 | -9/Mines | A weapon hastily lodged in a ceiling crevice suddenly fell to the ground 2650 | -9/Mines | Excavation squad dispatched 2900 | -9/Mines | Excavation squad dispatched 2924 | -9/Mines | Core integrity fell below 20% 2935 | -9/Mines | Destroyed by G-47 Trooper with Particle Gun Last Messages --------------- 02854_ G-34 Mercenary heat damages core (-3). 02855_ Overheating: System interference. 02855_ Particle Gun temporarily disabled. 02857_ Overheating: Energy bleed (-33). 02859_ Overheating: Salvage Targeting Computer damaged (-6). 02862_ Power failure, Ion Engine shutdown. 02878_ Acquired 35 matter. 02880_ Acquired 15 matter. 02881_ Acquired 13 matter. 02900_ ALERT: Derelict activity in mines confirmed. Dispatching additional escorted excavation squad. 02918_ G-34 Mercenary suffers critical hit (Burn). 02918_ Aluminum Leg melted. 02918_ Heat Sink melted. 02918_ G-34 Mercenary destroyed. 02927_ Imp. Treads destroyed. 02931_ Overheating: System interference. 02931_ Plasma Flamer temporarily disabled. 02931_ Imp. Treads destroyed. 02934_ G-47 Trooper heat damages Imp. Heat Sink. Map ----- +----------------------------------------------------+ | ?? #????# ##????????????????## #?? | | ?? ????##### #?????????????????## ##?? | | ?? ????????#### #??????????????????## #??? | | ??# ???????????## #???????????????????# #??? | | ??? ???????????## #???????????????????# #??? | | ??? ??????????## ##????????????????#### #??? | | ???? ?????????## ##?????????????????# #??? | | ??????????????# #??????????????????# ###??? | | ??????????????# ##?????????????????# #????? | | ??????????????## ##????????????????# #????? | | ???????????????## ####?????????????# ##???? | | ????????????????## ####?????????## ##??? | | ?????????????????# ### #???### #??? | | ?????????????????# ## #??## ##?? | | ?????????????????## ## [%= #?## #?? | | ?????????????????## #### /## ### #?? | | ?????????????????# #?## ### ## #?? | | ?????????????????# #??# #### # ##?? | | ????????????????## #??# ####??? | | ????????????????# #??# #?????? | | ???????########### ##??# ##### #?????? | | ???????# #?#####???# #???# ##?????? | | ???????# #?????????# #???# #??????? | | ???????# #?????????#=##### ##?????? | | ???????# """ ###########gg #?????? | | ???????# "" [% = @ #### #?????? | | ???????# """ #############??# ##?????? | | ???????# #??????????????## #####??????? | | ???????#########???????????????######??????????? | | ???????????????????????????????????????????????? | | | | | | | | | | | | | | | | | | | | | | | | | | | | | | | | | | | | | | | | | +----------------------------------------------------+ Best States ------------- Heat Dissipation 25 Energy Generation 10 Energy Capacity 250 Matter Stores 300 Matter Capacity 300 Sight Range 16 Terrain Scan Density 10 Evasion (%) 40 Recoil Reduction 2 Salvage Targeting 1 Item Schematics ----------------- None Robot Schematics ------------------ None Fabricated ------------ Nothing Alien Tech Used ----------------- None Achievements -------------- None Challenges ------------ None Game ------ Seed BombEncryptedMeganuke Manual? 0 Play Time 00:14:05 Cumulative 48.0 hours Start 2023.12.06 @ 21:02:40 End 2023.12.06 @ 21:15:26 Sessions 1 Manual Loads 0 Difficulty Rogue Special Mode None Game No. 77 Rogue 77 Adventurer 0 Explorer 0 Win Type - Total 1 Types 1/0/0/0/0/0/0/0/0 Lore% 26 Gallery% 40 Achievement% 34 Wizard Run 0 Options --------- ASCII 0 Keyboard 1 Movement Numpad Keybinds 0 Fullscreen 2 Font 18/SmallcapsGlow Map View 76x50 Tactical HUD 1 Map Filters NONE Filters NONE Steam 1 RUN: d3ffff66-f347-4d2e-80ee-2f967feb385b